[Event "Titled Tuesday Blitz January 03 Late 2023"]
[White "Ballester Llagaria, Luis Eduardo"]
[Black "Dardha, Daniel"]
[WhiteFideId "2297620"]
[BlackFideId "240990"]
[WhiteElo "2298"]
[BlackElo "2631"]
[Result "0-1"]
[Round "02"]
[TimeControl "180+2"]
[Date "2023.01.03"]
[WhiteClock "0:00:06"]
[BlackClock "0:00:19"]

1. e4 {[%clk 0:03:00]}  e5 {[%clk 0:03:00]} 2. Nf3 {[%clk 0:02:59]}  Nc6 {[%clk 0:02:59]} 3. Nc3 {[%clk 0:02:58]}  Bb4 {[%clk 0:02:56]} 4. Nd5 {[%clk 0:02:57]}  Bc5 {[%clk 0:02:53]} 5. Bc4 {[%clk 0:02:53]}  Nf6 {[%clk 0:02:52]} 6. O-O {[%clk 0:02:48]}  O-O {[%clk 0:02:48]} 7. d4 {[%clk 0:02:38]}  Nxd5 {[%clk 0:02:23]} 8. dxc5 {[%clk 0:02:28]}  Nf6 {[%clk 0:02:22]} 9. Bg5 {[%clk 0:02:02]}  h6 {[%clk 0:02:22]} 10. Bh4 {[%clk 0:02:02]}  b6 {[%clk 0:02:22]} 11. Bd5 {[%clk 0:01:52]}  Qe7 {[%clk 0:02:11]} 12. cxb6 {[%clk 0:01:46]}  axb6 {[%clk 0:02:11]} 13. Re1 {[%clk 0:01:43]}  Ra5 {[%clk 0:01:45]} 14. h3 {[%clk 0:01:33]}  Qd6 {[%clk 0:01:40]} 15. c4 {[%clk 0:01:16]}  Ne7 {[%clk 0:01:31]} 16. Bg3 {[%clk 0:01:11]}  Ng6 {[%clk 0:01:29]} 17. Kh1 {[%clk 0:00:58]}  Qe7 {[%clk 0:01:28]} 18. Nxe5 {[%clk 0:00:44]}  Nxe5 {[%clk 0:01:25]} 19. f4 {[%clk 0:00:44]}  Ng6 {[%clk 0:01:14]} 20. e5 {[%clk 0:00:44]}  Nxd5 {[%clk 0:01:14]} 21. cxd5 {[%clk 0:00:44]}  d6 {[%clk 0:01:03]} 22. Qd3 {[%clk 0:00:19]}  Qd8 {[%clk 0:00:32]} 23. e6 {[%clk 0:00:19]}  Ne7 {[%clk 0:00:33]} 24. Bh4 {[%clk 0:00:17]}  f6 {[%clk 0:00:33]} 25. Rad1 {[%clk 0:00:08]}  Rxd5 {[%clk 0:00:32]} 26. Qxd5 {[%clk 0:00:07]}  Nxd5 {[%clk 0:00:32]} 27. Rxd5 {[%clk 0:00:07]}  Re8 {[%clk 0:00:27]} 28. f5 {[%clk 0:00:08]}  Bb7 {[%clk 0:00:27]} 29. Rd3 {[%clk 0:00:08]}  Qa8 {[%clk 0:00:27]} 30. Rg3 {[%clk 0:00:08]}  Kh7 {[%clk 0:00:23]} 31. Rg6 {[%clk 0:00:06]}  Be4 {[%clk 0:00:21]} 32. Bxf6 {[%clk 0:00:05]}  gxf6 {[%clk 0:00:21]} 33. Rxf6 {[%clk 0:00:06]}  Rg8 {[%clk 0:00:19]} 34. Rf7+ {[%clk 0:00:07]}  Kh8 {[%clk 0:00:19]} 35. Re2 {[%clk 0:00:07]}  Bxg2+ {[%clk 0:00:19]} 36. Kh2 {[%clk 0:00:07]}  Bf1 {[%clk 0:00:19]} 37. Rf2 {[%clk 0:00:06]}  Rg2+ {[%clk 0:00:19]} 0-1


[Site "https://www.chess.com"]

[Event "Titled Tuesday Blitz January 03 Late 2023"]
[White "Oparin, Grigoriy"]
[Black "Alikhanov, Felix"]
[WhiteFideId "24125890"]
[BlackFideId "4157427"]
[WhiteElo "2667"]
[BlackElo "2434"]
[Result "1-0"]
[Round "02"]
[TimeControl "180+2"]
[Date "2023.01.03"]
[WhiteClock "0:01:53"]
[BlackClock "0:00:42"]

1. b3 {[%clk 0:03:00]}  e5 {[%clk 0:02:58]} 2. Bb2 {[%clk 0:03:01]}  Nc6 {[%clk 0:02:59]} 3. c4 {[%clk 0:03:01]}  Nf6 {[%clk 0:02:58]} 4. e3 {[%clk 0:03:01]}  d5 {[%clk 0:02:56]} 5. cxd5 {[%clk 0:03:02]}  Nxd5 {[%clk 0:02:57]} 6. Nc3 {[%clk 0:03:02]}  Be6 {[%clk 0:02:55]} 7. a3 {[%clk 0:03:00]}  Bd6 {[%clk 0:02:54]} 8. Qc2 {[%clk 0:03:00]}  O-O {[%clk 0:02:53]} 9. Nf3 {[%clk 0:03:00]}  h6 {[%clk 0:02:39]} 10. Bc4 {[%clk 0:02:46]}  Nce7 {[%clk 0:02:11]} 11. Nxd5 {[%clk 0:02:40]}  Bxd5 {[%clk 0:02:09]} 12. Nxe5 {[%clk 0:02:38]}  Bxe5 {[%clk 0:02:04]} 13. Bxe5 {[%clk 0:02:39]}  Bxc4 {[%clk 0:01:57]} 14. bxc4 {[%clk 0:02:37]}  c5 {[%clk 0:01:56]} 15. O-O {[%clk 0:02:34]}  Nc6 {[%clk 0:01:55]} 16. Bc3 {[%clk 0:02:33]}  Rc8 {[%clk 0:01:52]} 17. Qf5 {[%clk 0:02:30]}  Qe7 {[%clk 0:01:50]} 18. Rad1 {[%clk 0:02:26]}  b6 {[%clk 0:01:49]} 19. Rfe1 {[%clk 0:02:24]}  Rfe8 {[%clk 0:01:36]} 20. h3 {[%clk 0:02:23]}  Qe6 {[%clk 0:01:28]} 21. Qxe6 {[%clk 0:02:22]}  fxe6 {[%clk 0:01:29]} 22. f4 {[%clk 0:02:23]}  e5 {[%clk 0:01:26]} 23. fxe5 {[%clk 0:02:19]}  Nxe5 {[%clk 0:01:27]} 24. Bxe5 {[%clk 0:02:15]}  Rxe5 {[%clk 0:01:27]} 25. Kf2 {[%clk 0:02:16]}  Rf8+ {[%clk 0:01:19]} 26. Ke2 {[%clk 0:02:16]}  Rg5 {[%clk 0:01:20]} 27. g4 {[%clk 0:02:16]}  h5 {[%clk 0:01:19]} 28. Rg1 {[%clk 0:02:16]}  Re5 {[%clk 0:01:08]} 29. Rg2 {[%clk 0:02:08]}  h4 {[%clk 0:01:04]} 30. Rf2 {[%clk 0:02:03]}  Rxf2+ {[%clk 0:00:55]} 31. Kxf2 {[%clk 0:02:04]}  Kf7 {[%clk 0:00:56]} 32. Ke2 {[%clk 0:02:03]}  Kf6 {[%clk 0:00:52]} 33. Rf1+ {[%clk 0:02:03]}  Ke7 {[%clk 0:00:49]} 34. Rf4 {[%clk 0:01:58]}  g6 {[%clk 0:00:47]} 35. d3 {[%clk 0:01:55]}  a6 {[%clk 0:00:46]} 36. a4 {[%clk 0:01:54]}  Rg5 {[%clk 0:00:41]} 37. Re4+ {[%clk 0:01:54]}  Kd7 {[%clk 0:00:42]} 38. Kf3 {[%clk 0:01:53]} 1-0


[Site "https://www.chess.com"]

[Event "Titled Tuesday Blitz January 03 Late 2023"]
[White "Ozer, Omer Faruk"]
[Black "Bortnyk, Mykola"]
[WhiteFideId "6354564"]
[BlackFideId "14120836"]
[WhiteElo "2360"]
[BlackElo "2425"]
[Result "0-1"]
[Round "02"]
[TimeControl "180+2"]
[Date "2023.01.03"]
[WhiteClock "0:01:27"]
[BlackClock "0:02:14"]

1. e4 {[%clk 0:03:00]}  Nf6 {[%clk 0:02:59]} 2. e5 {[%clk 0:03:00]}  Nd5 {[%clk 0:03:00]} 3. d4 {[%clk 0:03:01]}  d6 {[%clk 0:03:00]} 4. c4 {[%clk 0:03:01]}  Nb6 {[%clk 0:03:00]} 5. exd6 {[%clk 0:03:02]}  exd6 {[%clk 0:03:00]} 6. h3 {[%clk 0:03:02]}  Be7 {[%clk 0:02:58]} 7. Nf3 {[%clk 0:03:02]}  O-O {[%clk 0:02:57]} 8. Bd3 {[%clk 0:03:02]}  Bf6 {[%clk 0:02:58]} 9. O-O {[%clk 0:03:02]}  Nc6 {[%clk 0:02:57]} 10. Nc3 {[%clk 0:03:02]}  Nb4 {[%clk 0:02:53]} 11. Bb1 {[%clk 0:03:02]}  g6 {[%clk 0:02:45]} 12. a3 {[%clk 0:02:50]}  Nc6 {[%clk 0:02:45]} 13. b3 {[%clk 0:02:36]}  a5 {[%clk 0:02:44]} 14. a4 {[%clk 0:02:22]}  Re8 {[%clk 0:02:39]} 15. Be3 {[%clk 0:02:13]}  Be6 {[%clk 0:02:32]} 16. Qd2 {[%clk 0:02:12]}  d5 {[%clk 0:02:32]} 17. c5 {[%clk 0:02:11]}  Nd7 {[%clk 0:02:30]} 18. Ng5 {[%clk 0:02:05]}  Nxc5 {[%clk 0:02:24]} 19. dxc5 {[%clk 0:02:01]}  d4 {[%clk 0:02:23]} 20. Nce4 {[%clk 0:01:28]}  dxe3 {[%clk 0:02:20]} 21. Qxd8 {[%clk 0:01:27]}  Bxd8 {[%clk 0:02:19]} 22. fxe3 {[%clk 0:01:27]}  Bxb3 {[%clk 0:02:14]} 23. Ba2 {[%clk 0:01:26]}  Bxa2 {[%clk 0:02:13]} 24. Rxa2 {[%clk 0:01:27]}  f5 {[%clk 0:02:14]} 0-1


[Site "https://www.chess.com"]

[Event "Titled Tuesday Blitz January 03 Late 2023"]
[White "Liascovich, Lucas"]
[Black "Carnicelli, Valerio"]
[WhiteFideId "108634"]
[BlackFideId "856185"]
[WhiteElo "2411"]
[BlackElo "2370"]
[Result "1-0"]
[Round "02"]
[TimeControl "180+2"]
[Date "2023.01.03"]
[WhiteClock "0:00:21"]
[BlackClock "0:00:05"]

1. d4 {[%clk 0:03:00]}  Nf6 {[%clk 0:03:00]} 2. Nc3 {[%clk 0:03:00]}  d5 {[%clk 0:02:59]} 3. Bf4 {[%clk 0:03:00]}  e6 {[%clk 0:03:00]} 4. e3 {[%clk 0:02:56]}  Bb4 {[%clk 0:02:59]} 5. Ne2 {[%clk 0:02:54]}  O-O {[%clk 0:02:59]} 6. a3 {[%clk 0:02:54]}  Bd6 {[%clk 0:02:58]} 7. Qd2 {[%clk 0:02:51]}  a6 {[%clk 0:02:56]} 8. f3 {[%clk 0:02:50]}  c5 {[%clk 0:02:56]} 9. Bxd6 {[%clk 0:02:48]}  Qxd6 {[%clk 0:02:57]} 10. g4 {[%clk 0:02:48]}  Nc6 {[%clk 0:02:56]} 11. Bg2 {[%clk 0:02:45]}  b5 {[%clk 0:02:55]} 12. O-O {[%clk 0:02:46]}  c4 {[%clk 0:02:53]} 13. e4 {[%clk 0:02:42]}  dxe4 {[%clk 0:02:49]} 14. fxe4 {[%clk 0:02:42]}  e5 {[%clk 0:02:41]} 15. g5 {[%clk 0:02:18]}  Nxd4 {[%clk 0:02:29]} 16. Nxd4 {[%clk 0:02:18]}  Qxd4+ {[%clk 0:02:29]} 17. Qxd4 {[%clk 0:02:14]}  exd4 {[%clk 0:02:30]} 18. gxf6 {[%clk 0:02:12]}  dxc3 {[%clk 0:02:30]} 19. bxc3 {[%clk 0:02:10]}  Bb7 {[%clk 0:02:22]} 20. fxg7 {[%clk 0:02:03]}  Rfd8 {[%clk 0:02:09]} 21. Rad1 {[%clk 0:02:04]}  Kxg7 {[%clk 0:02:06]} 22. Rd4 {[%clk 0:02:02]}  Kf8 {[%clk 0:01:30]} 23. Kf2 {[%clk 0:01:54]}  Ke7 {[%clk 0:01:28]} 24. Ke3 {[%clk 0:01:54]}  Bc6 {[%clk 0:01:14]} 25. Bh3 {[%clk 0:01:25]}  a5 {[%clk 0:01:08]} 26. Rf5 {[%clk 0:01:23]}  Rxd4 {[%clk 0:00:58]} 27. cxd4 {[%clk 0:01:20]}  b4 {[%clk 0:00:53]} 28. axb4 {[%clk 0:01:15]}  axb4 {[%clk 0:00:54]} 29. Re5+ {[%clk 0:00:53]}  Kd6 {[%clk 0:00:44]} 30. Bf5 {[%clk 0:00:46]}  b3 {[%clk 0:00:36]} 31. cxb3 {[%clk 0:00:45]}  cxb3 {[%clk 0:00:37]} 32. Kd3 {[%clk 0:00:45]}  Ra2 {[%clk 0:00:27]} 33. Kc3 {[%clk 0:00:42]}  Ba4 {[%clk 0:00:27]} 34. Rd5+ {[%clk 0:00:40]}  Ke7 {[%clk 0:00:27]} 35. e5 {[%clk 0:00:40]}  Rxh2 {[%clk 0:00:14]} 36. Ra5 {[%clk 0:00:35]}  Ra2 {[%clk 0:00:11]} 37. Ra7+ {[%clk 0:00:31]}  Kf8 {[%clk 0:00:11]} 38. d5 {[%clk 0:00:30]}  Kg7 {[%clk 0:00:07]} 39. e6 {[%clk 0:00:27]}  Be8 {[%clk 0:00:04]} 40. Re7 {[%clk 0:00:27]}  Ra8 {[%clk 0:00:01]} 41. exf7 {[%clk 0:00:24]}  Bxf7 {[%clk 0:00:02]} 42. Be6 {[%clk 0:00:24]}  b2 {[%clk 0:00:01]} 43. Rxf7+ {[%clk 0:00:22]}  Kg6 {[%clk 0:00:02]} 44. Kxb2 {[%clk 0:00:23]}  h5 {[%clk 0:00:02]} 45. Kc3 {[%clk 0:00:19]}  h4 {[%clk 0:00:03]} 46. Kd4 {[%clk 0:00:19]}  Ra4+ {[%clk 0:00:03]} 47. Ke5 {[%clk 0:00:19]}  Ra6 {[%clk 0:00:04]} 48. Rf3 {[%clk 0:00:19]}  Kg5 {[%clk 0:00:04]} 49. Rf5+ {[%clk 0:00:20]}  Kg6 {[%clk 0:00:04]} 50. Rf8 {[%clk 0:00:21]}  Kg5 {[%clk 0:00:05]} 51. Rg8+ {[%clk 0:00:21]}  Kh5 {[%clk 0:00:05]} 52. Kf6 {[%clk 0:00:21]} 1-0


[Site "https://www.chess.com"]

[Event "Titled Tuesday Blitz January 03 Late 2023"]
[White "Levitskiy, Andrey"]
[Black "Lenderman, Aleksandr"]
[WhiteFideId "14132885"]
[BlackFideId "2021285"]
[WhiteElo "2304"]
[BlackElo "2572"]
[Result "1/2-1/2"]
[Round "02"]
[TimeControl "180+2"]
[Date "2023.01.03"]
[WhiteClock "0:00:05"]
[BlackClock "0:00:05"]

1. e4 {[%clk 0:03:00]}  e6 {[%clk 0:03:00]} 2. d4 {[%clk 0:03:00]}  d5 {[%clk 0:02:57]} 3. Nc3 {[%clk 0:03:01]}  dxe4 {[%clk 0:02:46]} 4. Nxe4 {[%clk 0:03:02]}  Nd7 {[%clk 0:02:45]} 5. Nf3 {[%clk 0:02:58]}  Ngf6 {[%clk 0:02:46]} 6. Nxf6+ {[%clk 0:02:59]}  Nxf6 {[%clk 0:02:46]} 7. Be3 {[%clk 0:02:59]}  b6 {[%clk 0:02:45]} 8. Bd3 {[%clk 0:02:43]}  Bd6 {[%clk 0:02:42]} 9. Qe2 {[%clk 0:02:42]}  Bb7 {[%clk 0:02:41]} 10. O-O-O {[%clk 0:02:42]}  Qe7 {[%clk 0:02:38]} 11. Rhe1 {[%clk 0:02:41]}  O-O-O {[%clk 0:02:38]} 12. Ba6 {[%clk 0:02:39]}  Kb8 {[%clk 0:02:38]} 13. Bxb7 {[%clk 0:02:38]}  Kxb7 {[%clk 0:02:39]} 14. Kb1 {[%clk 0:02:34]}  c6 {[%clk 0:02:39]} 15. c4 {[%clk 0:02:25]}  Bc7 {[%clk 0:02:23]} 16. Rc1 {[%clk 0:02:07]}  Ne4 {[%clk 0:02:14]} 17. Red1 {[%clk 0:02:03]}  f5 {[%clk 0:02:11]} 18. g3 {[%clk 0:01:23]}  Rd7 {[%clk 0:02:08]} 19. Ne1 {[%clk 0:01:13]}  Rhd8 {[%clk 0:02:04]} 20. f3 {[%clk 0:01:11]}  Nf6 {[%clk 0:02:03]} 21. Nd3 {[%clk 0:01:05]}  e5 {[%clk 0:01:48]} 22. dxe5 {[%clk 0:00:54]}  Bxe5 {[%clk 0:01:49]} 23. Bg5 {[%clk 0:00:39]}  Bd4 {[%clk 0:01:40]} 24. Qxe7 {[%clk 0:00:31]}  Rxe7 {[%clk 0:01:41]} 25. Nf4 {[%clk 0:00:24]}  Rdd7 {[%clk 0:01:38]} 26. Bxf6 {[%clk 0:00:19]}  Bxf6 {[%clk 0:01:36]} 27. Rxd7+ {[%clk 0:00:20]}  Rxd7 {[%clk 0:01:36]} 28. Kc2 {[%clk 0:00:20]}  Re7 {[%clk 0:01:29]} 29. Rd1 {[%clk 0:00:15]}  Kc7 {[%clk 0:01:13]} 30. Nd3 {[%clk 0:00:13]}  Re2+ {[%clk 0:01:00]} 31. Rd2 {[%clk 0:00:13]}  Re3 {[%clk 0:01:01]} 32. f4 {[%clk 0:00:10]}  Bd4 {[%clk 0:00:55]} 33. b3 {[%clk 0:00:09]}  c5 {[%clk 0:00:51]} 34. Rd1 {[%clk 0:00:04]}  Rf3 {[%clk 0:00:49]} 35. Re1 {[%clk 0:00:03]}  Be3 {[%clk 0:00:46]} 36. Re2 {[%clk 0:00:03]}  Bd4 {[%clk 0:00:42]} 37. Re7+ {[%clk 0:00:04]}  Kd6 {[%clk 0:00:38]} 38. Re2 {[%clk 0:00:04]}  h6 {[%clk 0:00:34]} 39. a3 {[%clk 0:00:04]}  g5 {[%clk 0:00:34]} 40. fxg5 {[%clk 0:00:02]}  hxg5 {[%clk 0:00:34]} 41. b4 {[%clk 0:00:03]}  cxb4 {[%clk 0:00:32]} 42. axb4 {[%clk 0:00:03]}  g4 {[%clk 0:00:32]} 43. Rd2 {[%clk 0:00:03]}  Kc6 {[%clk 0:00:31]} 44. Re2 {[%clk 0:00:03]}  a5 {[%clk 0:00:31]} 45. bxa5 {[%clk 0:00:03]}  bxa5 {[%clk 0:00:32]} 46. Re6+ {[%clk 0:00:03]}  Kc7 {[%clk 0:00:30]} 47. Ra6 {[%clk 0:00:03]}  Bg1 {[%clk 0:00:20]} 48. Rxa5 {[%clk 0:00:03]}  Bxh2 {[%clk 0:00:21]} 49. Ra7+ {[%clk 0:00:02]}  Kb8 {[%clk 0:00:21]} 50. Rf7 {[%clk 0:00:02]}  Bxg3 {[%clk 0:00:21]} 51. c5 {[%clk 0:00:03]}  Bc7 {[%clk 0:00:17]} 52. Nb4 {[%clk 0:00:03]}  Kc8 {[%clk 0:00:15]} 53. Nd5 {[%clk 0:00:03]}  Be5 {[%clk 0:00:12]} 54. c6 {[%clk 0:00:03]}  Kb8 {[%clk 0:00:10]} 55. Rf8+ {[%clk 0:00:02]}  Ka7 {[%clk 0:00:10]} 56. c7 {[%clk 0:00:01]}  Bxc7 {[%clk 0:00:10]} 57. Nxc7 {[%clk 0:00:02]}  g3 {[%clk 0:00:11]} 58. Rg8 {[%clk 0:00:02]}  f4 {[%clk 0:00:11]} 59. Nb5+ {[%clk 0:00:02]}  Kb6 {[%clk 0:00:10]} 60. Nd4 {[%clk 0:00:03]}  Rf2+ {[%clk 0:00:10]} 61. Kd3 {[%clk 0:00:04]}  g2 {[%clk 0:00:11]} 62. Ke4 {[%clk 0:00:03]}  Kb7 {[%clk 0:00:04]} 63. Nf3 {[%clk 0:00:03]}  Kc7 {[%clk 0:00:04]} 64. Kxf4 {[%clk 0:00:04]}  Kb6 {[%clk 0:00:04]} 65. Ke3 {[%clk 0:00:04]}  Ra2 {[%clk 0:00:04]} 66. Ng1 {[%clk 0:00:04]}  Kc7 {[%clk 0:00:05]} 67. Kf3 {[%clk 0:00:04]}  Kd7 {[%clk 0:00:05]} 68. Ne2 {[%clk 0:00:03]}  Ra3+ {[%clk 0:00:05]} 69. Kf2 {[%clk 0:00:03]}  Ra6 {[%clk 0:00:06]} 70. Rxg2 {[%clk 0:00:03]}  Rd6 {[%clk 0:00:06]} 71. Nf4 {[%clk 0:00:04]}  Rf6 {[%clk 0:00:07]} 72. Ke3 {[%clk 0:00:04]}  Ra6 {[%clk 0:00:08]} 73. Rg5 {[%clk 0:00:04]}  Ke8 {[%clk 0:00:08]} 74. Rg7 {[%clk 0:00:04]}  Kf8 {[%clk 0:00:08]} 75. Rb7 {[%clk 0:00:05]}  Ke8 {[%clk 0:00:08]} 76. Ke4 {[%clk 0:00:05]}  Kf8 {[%clk 0:00:09]} 77. Nd5 {[%clk 0:00:06]}  Ra1 {[%clk 0:00:07]} 78. Ke5 {[%clk 0:00:06]}  Re1+ {[%clk 0:00:08]} 79. Kf5 {[%clk 0:00:06]}  Rf1+ {[%clk 0:00:08]} 80. Ke6 {[%clk 0:00:07]}  Re1+ {[%clk 0:00:08]} 81. Kf5 {[%clk 0:00:06]}  Rf1+ {[%clk 0:00:08]} 82. Nf4 {[%clk 0:00:07]}  Ke8 {[%clk 0:00:05]} 83. Ke5 {[%clk 0:00:07]}  Kf8 {[%clk 0:00:04]} 84. Ng6+ {[%clk 0:00:06]}  Ke8 {[%clk 0:00:04]} 85. Ke6 {[%clk 0:00:06]}  Re1+ {[%clk 0:00:04]} 86. Ne5 {[%clk 0:00:06]}  Kd8 {[%clk 0:00:04]} 87. Kd6 {[%clk 0:00:04]}  Rd1+ {[%clk 0:00:05]} 88. Ke6 {[%clk 0:00:04]}  Re1 {[%clk 0:00:05]} 89. Rd7+ {[%clk 0:00:04]}  Kc8 {[%clk 0:00:05]} 90. Rd5 {[%clk 0:00:05]}  Kc7 {[%clk 0:00:05]} 1/2-1/2


[Site "https://www.chess.com"]

[Event "Titled Tuesday Blitz January 03 Late 2023"]
[White "Yaran, Siar"]
[Black "Kamsky, Gata"]
[WhiteFideId "6323006"]
[BlackFideId "2000024"]
[WhiteElo "2288"]
[BlackElo "2665"]
[Result "0-1"]
[Round "02"]
[TimeControl "180+2"]
[Date "2023.01.03"]
[WhiteClock "0:00:05"]
[BlackClock "0:00:07"]

1. d4 {[%clk 0:03:00]}  Nf6 {[%clk 0:02:54]} 2. c4 {[%clk 0:03:01]}  g6 {[%clk 0:02:54]} 3. Nc3 {[%clk 0:03:01]}  Bg7 {[%clk 0:02:53]} 4. e4 {[%clk 0:03:01]}  d6 {[%clk 0:02:53]} 5. Nf3 {[%clk 0:03:02]}  O-O {[%clk 0:02:51]} 6. Be2 {[%clk 0:03:02]}  e5 {[%clk 0:02:49]} 7. O-O {[%clk 0:03:03]}  c6 {[%clk 0:02:48]} 8. Re1 {[%clk 0:03:01]}  Nbd7 {[%clk 0:02:45]} 9. Bf1 {[%clk 0:03:00]}  a6 {[%clk 0:02:45]} 10. b3 {[%clk 0:02:53]}  Re8 {[%clk 0:02:43]} 11. Bb2 {[%clk 0:02:48]}  b5 {[%clk 0:02:26]} 12. Qc2 {[%clk 0:02:41]}  Bb7 {[%clk 0:02:23]} 13. Rad1 {[%clk 0:02:38]}  Qc7 {[%clk 0:02:18]} 14. c5 {[%clk 0:02:26]}  dxc5 {[%clk 0:02:14]} 15. dxe5 {[%clk 0:02:26]}  Ng4 {[%clk 0:02:11]} 16. h3 {[%clk 0:02:21]}  Ngxe5 {[%clk 0:02:09]} 17. Nxe5 {[%clk 0:02:20]}  Bxe5 {[%clk 0:02:08]} 18. g3 {[%clk 0:02:15]}  Rad8 {[%clk 0:01:59]} 19. f4 {[%clk 0:02:10]}  Bd4+ {[%clk 0:01:58]} 20. Kh2 {[%clk 0:02:11]}  Bc8 {[%clk 0:01:36]} 21. Bg2 {[%clk 0:02:06]}  f6 {[%clk 0:01:31]} 22. e5 {[%clk 0:02:00]}  fxe5 {[%clk 0:01:30]} 23. f5 {[%clk 0:02:00]}  gxf5 {[%clk 0:01:29]} 24. Qxf5 {[%clk 0:01:54]}  Nf8 {[%clk 0:01:27]} 25. Qf3 {[%clk 0:01:31]}  Qg7 {[%clk 0:01:22]} 26. Bc1 {[%clk 0:01:28]}  Rd6 {[%clk 0:00:47]} 27. Ne4 {[%clk 0:01:27]}  Rg6 {[%clk 0:00:47]} 28. g4 {[%clk 0:00:35]}  Ne6 {[%clk 0:00:43]} 29. Nd6 {[%clk 0:00:31]}  Rf8 {[%clk 0:00:42]} 30. Qxc6 {[%clk 0:00:29]}  Bd7 {[%clk 0:00:27]} 31. Qd5 {[%clk 0:00:19]}  Kh8 {[%clk 0:00:22]} 32. Be4 {[%clk 0:00:16]}  Rf2+ {[%clk 0:00:19]} 33. Kg3 {[%clk 0:00:11]}  Nf4 {[%clk 0:00:14]} 34. Qa8+ {[%clk 0:00:09]}  Qg8 {[%clk 0:00:14]} 35. Qxg8+ {[%clk 0:00:10]}  Kxg8 {[%clk 0:00:08]} 36. Bxg6 {[%clk 0:00:08]}  Rg2+ {[%clk 0:00:08]} 37. Kf3 {[%clk 0:00:08]}  hxg6 {[%clk 0:00:07]} 38. Bxf4 {[%clk 0:00:09]}  Bc6+ {[%clk 0:00:08]} 39. Ne4 {[%clk 0:00:08]}  Rf2+ {[%clk 0:00:08]} 40. Kg3 {[%clk 0:00:05]}  Rxf4 {[%clk 0:00:08]} 41. Kh4 {[%clk 0:00:05]}  Bxe4 {[%clk 0:00:07]} 42. Kg5 {[%clk 0:00:05]}  Bf3 {[%clk 0:00:07]} 43. Rc1 {[%clk 0:00:05]}  Kg7 {[%clk 0:00:07]} 44. h4 {[%clk 0:00:05]}  Rxg4# {[%clk 0:00:07]} 0-1


[Site "https://www.chess.com"]

[Event "Titled Tuesday Blitz January 03 Late 2023"]
[White "Tang, Andrew"]
[Black "Denishev, Marat"]
[WhiteFideId "2059630"]
[BlackFideId "24131563"]
[WhiteElo "2523"]
[BlackElo "2255"]
[Result "1-0"]
[Round "02"]
[TimeControl "180+2"]
[Date "2023.01.03"]
[WhiteClock "0:00:28"]
[BlackClock "0:00:17"]

1. d4 {[%clk 0:03:00]}  Nf6 {[%clk 0:02:57]} 2. c4 {[%clk 0:02:58]}  c5 {[%clk 0:02:57]} 3. d5 {[%clk 0:02:55]}  b5 {[%clk 0:02:57]} 4. cxb5 {[%clk 0:02:56]}  a6 {[%clk 0:02:58]} 5. e3 {[%clk 0:02:54]}  axb5 {[%clk 0:02:52]} 6. Bxb5 {[%clk 0:02:55]}  Bb7 {[%clk 0:02:53]} 7. Nc3 {[%clk 0:02:55]}  g6 {[%clk 0:02:47]} 8. Nf3 {[%clk 0:02:53]}  Bg7 {[%clk 0:02:47]} 9. O-O {[%clk 0:02:54]}  O-O {[%clk 0:02:47]} 10. e4 {[%clk 0:02:54]}  d6 {[%clk 0:02:43]} 11. a4 {[%clk 0:02:38]}  Na6 {[%clk 0:02:43]} 12. Bg5 {[%clk 0:02:38]}  h6 {[%clk 0:02:42]} 13. Be3 {[%clk 0:02:35]}  Ng4 {[%clk 0:02:38]} 14. Bf4 {[%clk 0:02:35]}  Nb4 {[%clk 0:02:35]} 15. Qd2 {[%clk 0:02:33]}  Kh7 {[%clk 0:02:34]} 16. Rad1 {[%clk 0:02:30]}  Ba6 {[%clk 0:02:31]} 17. h3 {[%clk 0:02:28]}  Nf6 {[%clk 0:02:30]} 18. e5 {[%clk 0:02:28]}  dxe5 {[%clk 0:02:10]} 19. Nxe5 {[%clk 0:02:29]}  Bxb5 {[%clk 0:02:11]} 20. axb5 {[%clk 0:02:29]}  Qb6 {[%clk 0:01:55]} 21. Nc6 {[%clk 0:02:14]}  Rfe8 {[%clk 0:01:46]} 22. Be3 {[%clk 0:02:02]}  Nd7 {[%clk 0:01:21]} 23. Nxb4 {[%clk 0:01:59]}  cxb4 {[%clk 0:01:17]} 24. Bxb6 {[%clk 0:01:58]}  bxc3 {[%clk 0:01:18]} 25. bxc3 {[%clk 0:01:52]}  Nxb6 {[%clk 0:01:18]} 26. d6 {[%clk 0:01:26]}  Nc4 {[%clk 0:01:15]} 27. Qd5 {[%clk 0:01:25]}  Nxd6 {[%clk 0:01:14]} 28. c4 {[%clk 0:01:25]}  Rac8 {[%clk 0:01:00]} 29. Rc1 {[%clk 0:01:10]}  Red8 {[%clk 0:00:47]} 30. b6 {[%clk 0:01:03]}  e6 {[%clk 0:00:44]} 31. Qf3 {[%clk 0:00:57]}  Nf5 {[%clk 0:00:34]} 32. b7 {[%clk 0:00:47]}  Rc7 {[%clk 0:00:27]} 33. c5 {[%clk 0:00:46]}  Nd4 {[%clk 0:00:24]} 34. Qe4 {[%clk 0:00:37]}  f5 {[%clk 0:00:23]} 35. Qb1 {[%clk 0:00:28]}  Ne2+ {[%clk 0:00:20]} 36. Kh1 {[%clk 0:00:28]}  Nxc1 {[%clk 0:00:21]} 37. Rxc1 {[%clk 0:00:29]}  Bd4 {[%clk 0:00:17]} 38. b8=Q {[%clk 0:00:28]} 1-0


[Site "https://www.chess.com"]